fUSD/lending_fUSD_20240126
["ID","MTS","AMOUNT","RATE_DAILY","PERIOD"]
[312823436,1706299846644,-150.79,0.00041,2]
[312823437,1706299846657,-150.79,0.00041,2]
[312823438,1706299846669,-150.79,0.00041,2]
[312823439,1706299846683,-976.1034455,0.00041158,4]
[312823440,1706299846694,-417.47,0.00041282,10]
[312823441,1706299846704,-347.89,0.00041283,10]
[312823442,1706299846717,-289.91,0.00041283,10]
[312823443,1706299846729,-4793.38668918,0.00041293,2]
[312823444,1706299846741,-172.90006198,0.00041293,2]
[312823445,1706299846754,-999.86469797,0.00041293,2]
[312823446,1706299846765,-160.70368922,0.00041293,2]
[312823447,1706299846777,-8834.78196704,0.00041293,2]
[312823448,1706299846789,-1254.60582914,0.00041293,2]
[312823449,1706299846801,-4729.94220469,0.00041293,2]
[312823450,1706299846813,-6729.62311512,0.00041293,2]
[312823451,1706299846826,-21716.03226124,0.00041293,2]
[312823452,1706299846839,-12281.05271484,0.00041293,2]
[312823453,1706299846852,-1838.59605179,0.00041293,2]
[312823454,1706299846866,-643.0,0.00041293,2]
[312823455,1706299846877,-928.30761553,0.00041293,2]
[312823456,1706299846887,-8413.93931014,0.00041293,2]
[312823457,1706299846897,-62040.59156616,0.00041293,120]
[312823458,1706299846907,-165.39,0.000414,7]
[312823459,1706299846920,-1351.41470627,0.00041469,2]
[312823460,1706299846933,-183.93241377,0.00041522,4]
[312823461,1706299846944,-150.0,0.00041553,2]
[312823462,1706299846956,-1351.41470627,0.00041717,2]
[312823463,1706299846968,-13419.32065428,0.000418,37]
[312823464,1706299846978,-1004.93263813,0.00041998,4]
[312823465,1706299846989,-254.53301082,0.00041998,4]
[312823466,1706299846999,-2284.75461907,0.00041998,4]
[312823467,1706299847010,-2010.12834186,0.00041998,4]
[312823468,1706299847021,-162.34847253,0.00041998,4]
[312823469,1706299847032,-4652.13891196,0.00041998,4]
[312823470,1706299847048,-2560.36887213,0.00041998,4]
[312823471,1706299847059,-155.21024572,0.00041998,4]
[312823472,1706299847070,-197.08775884,0.00041998,4]
[312823473,1706299847083,-174.94679052,0.00041998,4]
[312823474,1706299847093,-1812.15097522,0.00041998,4]
[312823475,1706299847104,-183.91154665,0.00041998,4]
[312823476,1706299847116,-3000.0,0.00041999,11]
[312823477,1706299847127,-226.18215803,0.00041999,3]
[312823478,1706299847139,-175.53726548,0.00041999,3]
[312823479,1706299847150,-50000.0,0.00042,22]
[312823480,1706299847161,-489078.75075138,0.00042,30]
[312823481,1706299847174,-594.54602477,0.00042,4]
[312823482,1706299847185,-471.07690895,0.00042,4]
[312823483,1706299847197,-1206.2073378,0.00042,4]
[312823484,1706299847208,-2254.65193104,0.00042,3]
[312823485,1706299847219,-500.0,0.00042,7]
[312823486,1706299847231,-155.0,0.00042,4]
[312823487,1706299847242,-2373.57297439,0.00042,4]
[312823488,1706299847253,-42292.29087851,0.00042,4]
[312823489,1706299847264,-959.29720074,0.00042,7]
[312823490,1706299847274,-2000.0,0.00042,7]
[312823491,1706299847285,-200.0,0.00042,7]
[312823492,1706299847296,-2000.0,0.00042,7]
[312823493,1706299847306,-200.0,0.00042,7]
[312823494,1706299847317,-2000.0,0.00042,7]
[312823495,1706299847328,-200.0,0.00042,7]
[312823496,1706299847339,-200.0,0.00042,2]
[312823497,1706299847350,-2000.0,0.00042,7]
[312823498,1706299847361,-200.0,0.00042,7]
[312823499,1706299847371,-1351.41470627,0.00042228,2]
[312823500,1706299847384,-171.69,0.00042229,2]
[312823501,1706299847396,-2000.0,0.0004242,7]
[312823502,1706299847408,-200.0,0.0004242,7]
[312823503,1706299847420,-2000.0,0.0004242,7]
[312823504,1706299847431,-200.0,0.0004242,7]
[312823505,1706299847442,-2000.0,0.0004242,7]
[312823506,1706299847453,-200.0,0.0004242,7]
[312823507,1706299847464,-828.642458,0.0004242,7]
[312823508,1706299847475,-200.0,0.0004242,7]
[312823509,1706299847486,-674.99697859,0.00042591,14]
[312823510,1706299847497,-1351.41470627,0.00042612,2]
[312823511,1706299847508,-3703.2,0.000427,7]
[312823512,1706299847519,-152.72759033,0.00042769,17]
[312823513,1706299847530,-2000.0,0.00042844,7]
[312823514,1706299847541,-200.0,0.00042844,7]
[312823515,1706299847553,-2000.0,0.00042844,7]
[312823516,1706299847564,-200.0,0.00042844,7]
[312823517,1706299847574,-2000.0,0.00042844,7]
[312823518,1706299847585,-200.0,0.00042844,7]
[312823519,1706299847596,-200.0,0.00042844,7]
[312823520,1706299847607,-158.43,0.000429,3]
[312823521,1706299847618,-158.43,0.000429,3]
[312823522,1706299847629,-1100.96,0.000429,4]
[312823523,1706299847640,-1100.96,0.000429,4]
[312823524,1706299847651,-1100.96,0.000429,4]
[312823525,1706299847662,-1100.96,0.000429,4]
[312823526,1706299847675,-1100.96,0.000429,4]
[312823527,1706299847686,-1100.96,0.000429,4]
[312823528,1706299847698,-1100.96,0.000429,4]
[312823529,1706299847710,-1100.96,0.000429,4]
[312823530,1706299847723,-1100.96,0.000429,4]
[312823531,1706299847735,-1100.96,0.000429,4]
[312823532,1706299847748,-1100.96,0.000429,4]
[312823533,1706299847761,-1100.96,0.000429,4]
[312823534,1706299847771,-1100.96,0.000429,4]
[312823535,1706299847780,-1100.96,0.000429,4]
[312823536,1706299847960,-1100.96,0.000429,4]
[312823537,1706299847971,-1100.96,0.000429,4]
[312823538,1706299847980,-1100.96,0.000429,4]
[312823539,1706299847990,-1100.96,0.000429,4]
[312823540,1706299847999,-1100.96,0.000429,4]
[312823541,1706299848008,-1100.96,0.000429,4]
[312823542,1706299848017,-153.15,0.000429,4]
[312823543,1706299848026,-153.15,0.000429,4]
[312823544,1706299848035,-1378.0,0.0004299,2]
[312823545,1706299848045,-1441.0,0.0004299,2]
[312823546,1706299848054,-50000.0,0.00043,23]
[312823547,1706299848064,-10074.88520957,0.00043,30]
[312823548,1706299848074,-1000.0,0.00043,2]
[312823549,1706299848083,-29030.72676599,0.00043,2]
[312823550,1706299848092,-10000.0,0.00043,30]
[312823551,1706299848101,-10000.0,0.00043,30]
[312823552,1706299848110,-10000.0,0.00043,30]
[312823553,1706299848119,-10000.0,0.00043,30]
[312823554,1706299848128,-10000.0,0.00043,30]
[312823555,1706299848137,-10000.0,0.00043,30]
[312823556,1706299848146,-10000.0,0.00043,30]
[312823557,1706299848156,-6042.96856067,0.00043,2]
[312823558,1706299848166,-2738.85501989,0.00043264,18]
[312823559,1706299848175,-2000.0,0.00043273,7]
[312823560,1706299848184,-200.0,0.00043273,7]
[312823561,1706299848193,-2000.0,0.00043273,7]
[312823562,1706299848202,-200.0,0.00043273,7]
[312823563,1706299848211,-2000.0,0.00043273,7]
[312823564,1706299848221,-200.0,0.00043273,7]
[312823565,1706299848229,-200.0,0.00043273,7]
[312823566,1706299848239,-557.68919723,0.00043488,11]
[312823567,1706299848247,-2000.0,0.00043705,7]
[312823568,1706299848257,-200.0,0.00043705,7]
[312823569,1706299848266,-2000.0,0.00043705,7]
[312823570,1706299848275,-200.0,0.00043705,7]
[312823571,1706299848284,-2000.0,0.00043705,7]
[312823572,1706299848292,-200.0,0.00043705,7]
[312823573,1706299848302,-200.0,0.00043705,7]
[312823574,1706299848311,-165.39,0.000439,7]
[312823575,1706299848319,-50000.0,0.00044,24]
[312823576,1706299848328,-6605.52367574,0.00044,30]
[312823577,1706299848337,-10000.0,0.00044,30]
[312823578,1706299848346,-10000.0,0.00044,30]
[312823579,1706299848355,-10000.0,0.00044,30]
[312823580,1706299848364,-10000.0,0.00044,30]
[312823581,1706299848373,-700.0,0.00044,14]
[312823582,1706299848382,-175.0,0.00044,90]
[312823583,1706299848391,-591.01,0.00044085,15]
[312823584,1706299848400,-275.78984175,0.00044098,4]
[312823585,1706299848410,-200.0,0.000441,2]
[312823586,1706299848420,-6055.00893195,0.00044199,6]
[312823587,1706299848429,-171.69,0.00044493,2]
[312823588,1706299848438,-2814.7195582,0.00044672,38]
[312823589,1706299848447,-150.0,0.00044749,2]
[312823590,1706299848456,-226.18215803,0.00044999,4]
[312823591,1706299848465,-175.53726548,0.00044999,4]
[312823592,1706299848474,-50000.0,0.00045,25]
[312823593,1706299848483,-252.81337463,0.00045,2]
[312823594,1706299848493,-10000.0,0.00045,30]
[312823595,1706299848502,-10000.0,0.00045,30]
[312823596,1706299848511,-10000.0,0.00045,30]
[312823597,1706299848520,-150.0,0.00045,17]
[312823598,1706299848529,-10000.0,0.00045,30]
[312823599,1706299848538,-10000.0,0.00045,30]
[312823600,1706299848547,-10000.0,0.00045,30]
[312823601,1706299848556,-10000.0,0.00045,30]
[312823602,1706299848565,-10000.0,0.00045,30]
[312823603,1706299848574,-167.0,0.00045,90]
[312823604,1706299848583,-150.0,0.00045,2]
[312823605,1706299848593,-1000.0,0.00045,2]
[312823606,1706299848602,-4017.0,0.00045,2]
[312823607,1706299848611,-10000.0,0.00045,30]
[312823608,1706299848620,-10000.0,0.00045,30]
[312823609,1706299848629,-10000.0,0.00045,30]
[312823610,1706299848639,-10000.0,0.00045,30]
[312823611,1706299848648,-10000.0,0.00045,30]
[312823612,1706299848657,-2500.0,0.00045,30]
[312823613,1706299848667,-10000.0,0.000453,30]
[312823614,1706299848675,-1000.0,0.000458,2]
[312823615,1706299848684,-2738.85501989,0.00045809,21]
[312823616,1706299848694,-50000.0,0.00046,26]
[312823617,1706299848703,-10000.0,0.00046,30]
[312823618,1706299848713,-10000.0,0.00046,30]
[312823619,1706299848722,-10000.0,0.00046,30]
[312823620,1706299848731,-10000.0,0.00046,30]
[312823621,1706299848741,-10000.0,0.00046,30]
[312823622,1706299848751,-10000.0,0.00046,30]
[312823623,1706299848761,-10000.0,0.00046,30]
[312823624,1706299848770,-1000.0,0.00046,2]
[312823625,1706299848780,-151.0,0.00046,14]
[312823626,1706299848789,-175.0,0.00046027,90]
[312823627,1706299848798,-200.0,0.000462,2]
[312823628,1706299848807,-194.31599951,0.00046575,120]
[312823629,1706299848816,-152.72759033,0.00046743,32]
[312823630,1706299848826,-171.69,0.00046757,2]
[312823631,1706299848835,-249.62,0.00046849,2]
[312823632,1706299848844,-2130.11,0.00046849,120]
[312823633,1706299848853,-1253.82,0.00046849,120]
[312823634,1706299848862,-3000.0,0.00046999,11]
[312823635,1706299848872,-50000.0,0.00047,27]
[312823636,1706299848881,-10000.0,0.00047,30]
[312823637,1706299848891,-10000.0,0.00047,30]
[312823638,1706299848900,-184.0,0.00047,90]
[312823639,1706299848909,-1000.0,0.00047,2]
[312823640,1706299848919,-167.0,0.00047154,90]
[312823641,1706299848929,-5074.51470002,0.000476,2]
[312823642,1706299848937,-557.68919723,0.00047626,13]
[312823643,1706299848947,-6055.00893195,0.00047766,9]
[312823644,1706299848956,-216.818378,0.00047778,10]
[312823645,1706299848965,-591.01,0.00047821,15]
[312823646,1706299848974,-569.0,0.0004789,2]
[312823647,1706299848983,-1383.59308013,0.000479,2]
[312823648,1706299848993,-218.90366879,0.000479,2]
[312823649,1706299849002,-183.05582555,0.000479,2]
[312823650,1706299849011,-3548.62138959,0.000479,2]
[312823651,1706299849020,-150.0,0.00047945,2]
[312823652,1706299849029,-50000.0,0.00048,28]
[312823653,1706299849039,-50000.0,0.00048,28]
[312823654,1706299849048,-431589.00742232,0.00048,14]
[312823655,1706299849059,-10000.0,0.00048,30]
[312823656,1706299849068,-1000.0,0.00048,2]
[312823657,1706299849077,-176.0,0.00048329,90]
[312823658,1706299849087,-2738.85501989,0.00048355,24]
[312823659,1706299849096,-2720.0,0.0004839,2]
[312823660,1706299849105,-2368.0,0.0004839,2]
[312823661,1706299849114,-59659.481488,0.00048442,2]
[312823662,1706299849123,-1767.60331455,0.00048498,4]
[312823663,1706299849132,-940.48918206,0.00048498,4]
[312823664,1706299849142,-697.25548386,0.00048498,4]
[312823665,1706299849150,-522.97068852,0.00048498,4]
[312823666,1706299849160,-231.93292492,0.00048498,4]
[312823667,1706299849169,-16801.9913254,0.00048498,4]
[312823668,1706299849178,-871.42018041,0.00048498,10]
[312823669,1706299849187,-155.26555109,0.00048498,4]
[312823670,1706299849196,-1160.16678694,0.00048498,4]
[312823671,1706299849206,-41451.50077492,0.00048498,4]
[312823672,1706299849215,-156.13105241,0.00048498,4]
[312823673,1706299849225,-224.16083161,0.00048498,4]
[312823674,1706299849234,-2514.34633528,0.00048498,4]
[312823675,1706299849243,-814.18421461,0.00048498,4]
[312823676,1706299849252,-360.8545052,0.00048498,4]
[312823677,1706299849261,-2022.40699764,0.00048498,30]
[312823678,1706299849270,-191.64869268,0.00048498,4]
[312823679,1706299849279,-1260.34340866,0.00048499,4]
[312823680,1706299849288,-343.17836134,0.00048499,4]
[312823681,1706299849299,-4106.053527,0.000485,60]
[312823682,1706299849308,-238.39762293,0.000485,30]
[312823683,1706299849318,-1000.0,0.000485,2]
[312823684,1706299849327,-475.56196978,0.000485,30]
[312823685,1706299849335,-1000.0,0.000485,30]
[312823686,1706299849345,-424.55105303,0.000485,30]
[312823687,1706299849354,-158.43,0.000485,3]
[312823688,1706299849363,-158.43,0.000485,3]
[312823689,1706299849372,-1100.96,0.000485,6]
[312823690,1706299849381,-1100.96,0.000485,6]
[312823691,1706299849390,-1100.96,0.000485,6]
[312823692,1706299849399,-1100.96,0.000485,6]
[312823693,1706299849408,-1100.96,0.000485,6]
[312823694,1706299849418,-1100.96,0.000485,6]
[312823695,1706299849427,-1100.96,0.000485,6]
[312823696,1706299849436,-1100.96,0.000485,6]
[312823697,1706299849445,-1100.96,0.000485,6]
[312823698,1706299849454,-1100.96,0.000485,6]
[312823699,1706299849463,-1100.96,0.000485,6]
[312823700,1706299849472,-1100.96,0.000485,6]
[312823701,1706299849481,-1100.96,0.000485,6]
[312823702,1706299849490,-1100.96,0.000485,6]
[312823703,1706299849499,-1100.96,0.000485,6]
[312823704,1706299849508,-1100.96,0.000485,6]
[312823705,1706299849517,-1100.96,0.000485,6]
[312823706,1706299849527,-1100.96,0.000485,6]
[312823707,1706299849536,-1100.96,0.000485,6]
[312823708,1706299849545,-1100.96,0.000485,6]
[312823709,1706299849555,-153.15,0.000485,6]
[312823710,1706299849563,-153.15,0.000485,6]
[312823711,1706299849572,-5000.0,0.000486,4]
[312823712,1706299849582,-151.0,0.00048778,2]
[312823713,1706299849591,-3703.2,0.000489,7]
[312823714,1706299849600,-282.09565989,0.00048998,2]
[312823715,1706299849609,-155.0,0.00048998,4]
[312823716,1706299849618,-155.50156782,0.00048998,4]
[312823717,1706299849628,-155.27446598,0.00048998,4]
[312823718,1706299849637,-155.51550435,0.00048998,4]
[312823719,1706299849646,-162.79288573,0.00048998,4]
[312823720,1706299849655,-3029.53701716,0.00048998,4]
[312823721,1706299849667,-326.27481351,0.00048998,4]
[312823722,1706299849675,-244.03134823,0.00048999,2]
[312823723,1706299849684,-226.18215803,0.00048999,8]
[312823724,1706299849694,-175.53726548,0.00048999,8]
[312823725,1706299849703,-50000.0,0.00049,29]
[312823726,1706299849712,-1000.0,0.00049,2]
[312823727,1706299849721,-171.69,0.0004902,2]
[312823728,1706299849730,-184.0,0.00049041,90]
[312823729,1706299849739,-169.0,0.00049511,120]
[312823730,1706299849749,-302.0,0.00049598,4]
[312823731,1706299849758,-703.864046,0.00049966,2]
[312823732,1706299849768,-284.3820119,0.00049966,2]
[312823733,1706299849777,-50000.0,0.0005,40]
[312823734,1706299849786,-623.07044682,0.0005,120]
[312823735,1706299849795,-4103.91146302,0.0005,4]
[312823736,1706299849804,-155.0,0.0005,120]
[312823737,1706299849813,-155.0,0.0005,4]
[312823738,1706299849823,-269.26220601,0.0005,4]
[312823739,1706299849833,-155.0,0.0005,4]
[312823740,1706299849843,-183.05072978,0.0005,4]
[312823741,1706299849854,-7856.48523005,0.0005,4]
[312823742,1706299849864,-2956.2494956,0.0005,4]
[312823743,1706299849875,-26898.56888069,0.0005,4]
[312823744,1706299849886,-498.62508235,0.0005,30]
[312823745,1706299849896,-404.349501,0.0005,12]
[312823746,1706299849906,-11636.0,0.0005,12]
[312823747,1706299849918,-2270.02,0.0005,120]
[312823748,1706299849927,-75334.75496163,0.0005,15]
[312823749,1706299849938,-3902.8358554,0.0005,2]
[312823750,1706299849948,-1109.02653944,0.0005,2]
[312823751,1706299849957,-300.0,0.0005,27]
[312823752,1706299849968,-5000.0,0.0005,120]
[312823753,1706299849978,-200.0,0.0005,27]
[312823754,1706299849988,-5000.0,0.0005,120]
[312823755,1706299849998,-273.46726691,0.0005,30]
[312823756,1706299850008,-4017.0,0.0005,30]
[312823757,1706299850019,-1000.0,0.0005,2]
[312823758,1706299850029,-150.0,0.0005,27]
[312823759,1706299850040,-5000.0,0.00050375,120]
[312823760,1706299850051,-5000.0,0.00050375,120]
[312823761,1706299850066,-165.39,0.000504,7]
[312823762,1706299850077,-604.0,0.00050432,7]
[312823763,1706299850087,-2901.43307647,0.000505,30]
[312823764,1706299850097,-200.0,0.000505,28]
[312823765,1706299850108,-228.18,0.00050669,7]
[312823766,1706299850118,-193.9,0.00050669,120]
[312823767,1706299850128,-275.89,0.00050669,120]
[312823768,1706299850139,-150.5,0.00050679,7]
[312823769,1706299850150,-150.5,0.00050679,120]
[312823770,1706299850160,-150.5,0.00050679,120]
[312823771,1706299850175,-279.48,0.00050679,120]
[312823772,1706299850186,-209.74,0.00050679,120]
[312823773,1706299850196,-208.6,0.00050679,120]
[312823774,1706299850207,-150.5,0.00050689,7]
[312823775,1706299850217,-3703.2,0.000507,7]
[312823776,1706299850227,-210.00957,0.00050704,20]
[312823777,1706299850237,-152.72759033,0.00050716,47]
[312823778,1706299850247,-5000.0,0.0005075,120]
[312823779,1706299850257,-5000.0,0.0005075,120]
[312823780,1706299850266,-1167.0,0.0005079,2]
[312823781,1706299850276,-1004.0,0.0005079,2]
[312823782,1706299850286,-800.0,0.00050835,10]
[312823783,1706299850295,-335.2375488,0.00050865,2]
[312823784,1706299850304,-25045.1714214,0.00050865,2]
[312823785,1706299850314,-50115.55761002,0.000509,30]
[312823786,1706299850475,-662.70634916,0.000509,30]
[312823787,1706299850489,-1659.77367416,0.000509,30]
[312823788,1706299850501,-4156.56,0.000509,30]
[312823789,1706299850512,-265.380005,0.000509,30]
[312823790,1706299850523,-266.550005,0.000509,30]
[312823791,1706299850534,-577.10244648,0.000509,30]
[312823792,1706299850792,-265.0,0.0002292,2]
[312823793,1706299850803,-863.47004612,0.00022923,2]
[312823794,1706299850813,-2116.73403368,0.000479,2]
[312823795,1706299850823,-4841.82880713,0.000509,30]
[312823796,1706299851019,-85643.88953739,0.000509,30]
[312823797,1706299851031,-511.63835786,0.000509,30]
[312823798,1706299851047,-418.02475556,0.000509,30]
[312823799,1706299851058,-3038.99668352,0.000509,30]
[312823800,1706299851072,-1600.0,0.000509,30]
[312823801,1706299851084,-963.43300406,0.000509,30]
[312823802,1706299851094,-594.91090339,0.000509,30]
[312823803,1706299851105,-585.65050295,0.000509,30]
[312823804,1706299851117,-7117.37199728,0.000509,30]
[312823817,1706301031571,-709.4372165,0.00022069,2]
[312823818,1706301031584,-50.72303552,0.00022069,2]
[312823819,1706301031594,-929.88575905,0.00022069,2]
[312823820,1706301031606,-70.11424095,0.00022069,2]
[312823821,1706301031615,-2706.11040838,0.0002207,2]
[312823822,1706301031624,-417.79251044,0.00022079,2]
[312823823,1706301031634,-762.1725,0.00022798,2]
[312823824,1706301031644,-494.22252812,0.00022922,2]
[312823825,1706301031653,-550.0,0.00025,3]
[312823826,1706301031662,-155.0,0.000275,2]
[312823827,1706301031671,-135.44292456,0.00030257,4]
[312823828,1706301031683,-100.72729368,0.00030257,4]
[312823829,1706301031693,-155.0,0.00030258,2]
[312823830,1706301031702,-250.0,0.00030259,2]
[312823831,1706301031712,-164.95,0.00031428,2]
[312823832,1706301031721,-1304.27270632,0.00031673,2]
[312823833,1706301031734,-2311.7,0.00031673,2]
[312823834,1706301031746,-1206.81729368,0.00031673,2]
[312823835,1706301031756,-975.38851105,0.00031865,2]
[312823836,1706301031769,-24.61148895,0.00031865,2]
[312823837,1706301031778,-1528.92426347,0.00031996,2]
[312823838,1706301031791,-471.07573653,0.00031996,2]
[312823839,1706301031801,-252.22102971,0.00031998,4]
[312823840,1706301031815,-2958.08076918,0.00031998,4]
[312823841,1706301031832,-1046.96253148,0.00031998,4]
[312823842,1706301031847,-1228.30118466,0.00031998,4]
[312823843,1706301031864,-397.098922,0.00031998,4]
[312823844,1706301031877,-679.05072543,0.00031998,4]
[312823845,1706301031898,-1783.59213871,0.00031998,4]
[312823846,1706301031910,-793.94,0.00031998,4]
[312823857,1706301037575,-169.48,0.00031568,2]
[312823858,1706301037584,-169.48,0.00031979,2]
[312823859,1706301037594,-19304.37469332,0.00031998,4]
[312823860,1706301037631,-274288.5820479,0.00031998,4]
[312823861,1706301037643,-6715.83908589,0.00031998,4]
[312823862,1706301037653,-22510.21365988,0.00031999,4]
[312823863,1706301037666,-50556.05015636,0.00031999,4]
[312823864,1706301037676,-4305.83883137,0.00032,2]
[312823865,1706301037687,-156.09936913,0.00032,2]
[312823866,1706301037697,-207.64344888,0.00032084,5]
[312823867,1706301037707,-2175.03608003,0.00032185,7]
[312823868,1706301037717,-151.49197101,0.00032185,2]
[312823869,1706301037727,-169.48,0.00032389,2]
[312823870,1706301037738,-180.64,0.00032448,2]
[312823871,1706301037747,-1711.80569067,0.00032645,2]
[312823872,1706301037756,-250.0,0.00032657,2]
[312823873,1706301037767,-169.48,0.00032799,2]
[312823874,1706301037776,-344.75,0.00032877,15]
[312823875,1706301037785,-163.16,0.00033082,2]
[312823876,1706301037794,-250.0,0.00033199,2]
[312823877,1706301037805,-169.48,0.0003321,2]
[312823878,1706301037814,-6574.6283389,0.00033245,4]
[312823879,1706301037824,-27277.87821221,0.00033246,4]
[312823880,1706301037836,-5595.26348229,0.00033246,4]
[312823881,1706301037846,-626.91,0.00033257,2]
[312823882,1706301037856,-6574.6283389,0.00033414,4]
[312823883,1706301037865,-2092.2,0.00033424,2]
[312823884,1706301037876,-39447.7700334,0.00033597,4]
[312823885,1706301037886,-71754.65996171,0.00033607,2]
[312823886,1706301037899,-9384.26423829,0.00033607,2]
[312823887,1706301037909,-1825.03883922,0.00033709,10]
[312823889,1706301037918,-181.99972955,0.00033709,3]
[312823890,1706301037930,-157.48604117,0.000338,4]
[312823891,1706301037939,-163.16,0.00033944,2]
[312823892,1706301037950,-1000.0,0.00034,4]
[312823893,1706301037959,-507.16322137,0.00034,4]
[312823894,1706301037969,-218.02,0.00034345,2]
[312823896,1706301037979,-259.2562,0.00034578,2]
[312823898,1706301037988,-2118.905,0.0003458,2]
[312823900,1706301037997,-216.92747266,0.00034649,2]
[312823902,1706301038007,-19723.8850167,0.0003466,6]
[312823904,1706301038016,-163.16,0.00034806,2]
[312823906,1706301038025,-6574.6283389,0.0003488,6]
[312823908,1706301038035,-8975.56984561,0.000349,4]
[312823910,1706301038044,-6574.6283389,0.00034977,7]
[312823912,1706301038054,-155.0,0.00035,2]
[312823930,1706301038208,-155.0,0.00035,2]
[312823932,1706301038218,-1065.05,0.00035163,2]
[312823934,1706301038227,-191.554,0.00035325,2]
[312823936,1706301038236,-207.64344887,0.00035343,7]
[312823938,1706301038245,-218.02,0.00035616,2]
[312823940,1706301038254,-180.64,0.00035693,2]
[312823942,1706301038264,-1000.0,0.00035848,2]
[312823944,1706301038273,-499.20256374,0.0003632,14]
[312823946,1706301038282,-549.03074208,0.0003632,2]
[312823948,1706301038292,-13149.2566778,0.00036395,9]
[312823950,1706301038301,-6574.6283389,0.000364,9]
[312823952,1706301038310,-19723.8850167,0.0003641,9]
[312823954,1706301038319,-6574.6283389,0.00036521,9]
[312823955,1706301038328,-4916.47418524,0.00036531,2]
[312823956,1706301038337,-344.75,0.00036613,15]
[312823957,1706301038346,-164.95,0.00036804,2]
[312823958,1706301038355,-218.02,0.00036887,2]
[312823959,1706301038363,-310.4579952,0.00037,4]
[312823960,1706301038373,-173.0,0.00037426,2]
[312823961,1706301038382,-6574.6283389,0.0003769,10]
[312823962,1706301038392,-440.72,0.000377,3]
[312823963,1706301038401,-440.72,0.000377,3]
[312823964,1706301038410,-440.72,0.000377,3]
[312823965,1706301038419,-440.72,0.000377,3]
[312823966,1706301038432,-440.72,0.000377,3]
[312823967,1706301038441,-440.72,0.000377,3]
[312823968,1706301038451,-440.72,0.000377,3]
[312823969,1706301038460,-440.72,0.000377,3]
[312823970,1706301038470,-440.72,0.000377,3]
[312823971,1706301038479,-440.72,0.000377,3]
[312823972,1706301038488,-440.72,0.000377,3]
[312823973,1706301038497,-440.72,0.000377,3]
[312823974,1706301038507,-440.72,0.000377,3]
[312823975,1706301038516,-440.72,0.000377,3]
[312823976,1706301038526,-440.72,0.000377,3]
[312823977,1706301038535,-440.72,0.000377,3]
[312823978,1706301038545,-440.72,0.000377,3]
[312823979,1706301038554,-440.72,0.000377,3]
[312823980,1706301038563,-440.72,0.000377,3]
[312823981,1706301038572,-440.72,0.000377,3]
[312823982,1706301038581,-153.19,0.000377,3]
[312823983,1706301038590,-39447.7700334,0.0003789,10]
[312823984,1706301038600,-47075.5612658,0.000379,2]
[312823985,1706301038612,-125969.8835062,0.000379,2]
[312823986,1706301038621,-863.47004612,0.00037978,2]
[312823987,1706301038630,-3367.07534366,0.00038077,10]
[312823988,1706301038648,-881.59954973,0.00038077,10]
[312823989,1706301038659,-771.07115909,0.00038077,10]
[312823990,1706301038671,-300.0,0.00038077,10]
[312823991,1706301038682,-1254.88228642,0.00038077,10]
[312823992,1706301038691,-159.8,0.00038097,2]
[312823993,1706301038701,-218.02,0.00038158,2]
[312823994,1706301038710,-150.0,0.00038356,2]
[312823995,1706301038719,-207.64344887,0.00038603,9]
[312823996,1706301038728,-180.64,0.00038938,2]